[Event "World Senior chT-50 2019"]
[Site "Rhodes"]
[Date "2019.04.23"]
[Round "8.28"]
[White "Homer, Stephen J"]
[Black "Lyons, Brendan"]
[Result "1-0"]
[ECO "B01"]
[WhiteElo "2039"]
[BlackElo "1976"]
[Annotator "NA RC"]
[PlyCount "119"]
[EventDate "2019.04.16"]
[EventType "team-tourn"]
[EventCountry "GRE"]
[SourceTitle "playchess.com"]
[Source "ChessBase"]
[SourceQuality "1"]
[WhiteTeam "England"]
[BlackTeam "Ireland"]
[WhiteTeamCountry "ENG"]
[BlackTeamCountry "IRL"]
[TimeControl "40/5400+30:1800+30"]

1. e4 {[%emt 0:00:00]} d5 {[%emt 0:00:00]} 2. exd5 {[%emt 0:00:00]} Nf6 {[%emt 0:00:00]} 3. Bb5+ {[%emt 0:00:00]} Nbd7 {[%emt 0:00:00]} 4. d4 {[%emt 0:00:00]} a6 {[%emt 0:03:16]} 5. Be2 {[%emt 0:00:00]} Nb6 {[%emt 0:05:15]} 6. c4 {[%emt 0:01:31]} e6 {[%emt 0:00:32]} 7. dxe6 {[%emt 0:02:18]} Bxe6 {[%emt 0:01:03]} 8. d5 {[%emt 0:00:30]} Bf5 {[%emt 0:01:07]} 9. Nf3 {[%emt 0:00:43]} Bb4+ {[%emt 0:06:40]} 10. Bd2 {[%emt 0:01:21]} Qe7 {[%emt 0:08:41]} 11. O-O {[%emt 0:03:52]} Ne4 {[%emt 0:02:41]} 12. Bf4 {[%emt 0:05:00]} g5 {[%emt 0:07:31]} 13. Be3 {[%emt 0:12:02]} Nd7 {[%emt 0:11:12]} 14. Nbd2 {[%emt 0:07:57]} h6 {[%emt 0:24:12]} 15. Nxe4 {[%emt 0:03:52]} Bxe4 {[%emt 0:00:24]} 16. Bd4 {[%emt 0:04:22]} Rg8 {[%emt 0:02:29]} (16... O-O $16 17. a3 Bd6) 17. Bd3 {[%emt 0:03:35]} O-O-O {[%emt 0:01:25]} 18. a3 {[%emt 0:01:13]} g4 {[%emt 0:03:25]} 19. Ne1 {[%emt 0:03:40]} Bd6 {[%emt 0:04:49]} 20. Bxe4 {[%emt 0:05:15]} Qxe4 {[%emt 0:02:39]} 21. Qd3 {[%emt 0:00:25]} Qe7 {[%emt 0:03:00]} 22. b4 {[%emt 0:00:44]} Rg5 {[%emt 0:02:41]} 23. f4 {[%emt 0:02:08]} gxf3 {[%emt 0:01:38]} 24. Nxf3 {[%emt 0:00:06]} Rh5 {[%emt 0:01:40]} 25. Rae1 {[%emt 0:01:17]} Ne5 {[%emt 0:01:13]} 26. Bxe5 {[%emt 0:01:40]} Bxe5 {[%emt 0:00:12]} 27. Rxe5 {[%emt 0:00:49]} Rxe5 {[%emt 0:00:13]} 28. Nxe5 {[%emt 0:00:04]} Qxe5 {[%emt 0:01:08]} 29. Qf5+ {[%emt 0:00:18]} Qxf5 {[%emt 0:00:28]} 30. Rxf5 {[%emt 0:00:01]} c6 {[%emt 0:00:45]} 31. dxc6 {[%emt 0:00:12]} bxc6 {[%emt 0:00:12]} 32. Rf6 {[%emt 0:00:35]} Rd1+ {[%emt 0:00:26]} 33. Kf2 {[%emt 0:00:10]} Rd2+ {[%emt 0:00:08]} 34. Kg3 {[%emt 0:00:14]} Rd3+ {[%emt 0:00:43]} 35. Rf3 {[%emt 0:02:41]} Rd4 {[%emt 0:00:07]} 36. c5 {[%emt 0:00:06]} a5 {[%emt 0:00:13]} 37. Rf6 {[%emt 0:02:56]} axb4 {[%emt 0:01:20]} (37... Rd3+ $142 38. Kf4 Rxa3 39. Rxc6+ Kd7 40. Rd6+ (40. Rxh6 axb4 41. Rd6+ Ke7 $16) 40... Kc8 41. bxa5 (41. Rxh6 axb4 42. Rb6 Ra2 $16) 41... Rxa5 42. Rxh6 Rxc5) 38. axb4 {[%emt 0:00:11]} ({Weaker is} 38. Rxc6+ Kd7 $16) 38... Rxb4 {[%emt 0:02:45]} 39. Rxc6+ {[%emt 0:00:11]} Kd7 {[%emt 0:00:22]} 40. Rxh6 {[%emt 0:00:00]} Rc4 {[%emt 0:00:00]} 41. Rf6 {[%emt 0:03:01]} Ke7 {[%emt 0:00:35]} 42. Rf5 {[%emt 0:00:28]} Ke6 {[%emt 0:00:08]} 43. Rh5 {[%emt 0:00:19]} f5 {[%emt 0:00:16]} 44. Rh6+ {[%emt 0:01:12]} Ke5 {[%emt 0:02:12]} 45. c6 {[%emt 0:00:35]} Rc3+ {[%emt 0:03:01]} 46. Kh4 {[%emt 0:00:40]} Rc4+ {[%emt 0:08:14]} 47. Kh5 {[%emt 0:00:21]} Kf4 {[%emt 0:16:07]} 48. Rg6 {[%emt 0:01:19]} Rc2 {[%emt 0:03:08]} 49. Kh6 {[%emt 0:00:23]} Ke5 {[%emt 0:01:53]} 50. h4 {[%emt 0:01:16]} Rc4 {[%emt 0:01:14]} 51. h5 {[%emt 0:00:02]} Rh4 {[%emt 0:01:03]} 52. c7 {[%emt 0:00:01]} Rc4 {[%emt 0:00:06]} 53. Rg7 {[%emt 0:00:07]} Kf6 {[%emt 0:00:12]} 54. Kh7 {[%emt 0:02:10]} Rc2 {[%emt 0:01:11]} 55. Kg8 {[%emt 0:01:17]} f4 {[%emt 0:00:28]} 56. h6 {[%emt 0:00:23]} f3 {[%emt 0:00:14]} 57. gxf3 {[%emt 0:00:10]} Rc3 {[%emt 0:00:31]} 58. h7 {[%emt 0:00:13]} Re3 {[%emt 0:01:03]} 59. c8=Q {[%emt 0:01:42]} Re8+ {[%emt 0:00:02]} 60. Qxe8 {[%emt 0:00:12]} 1-0

[Event "World Senior chT-50 2019"]
[Site "Rhodes"]
[Date "2019.04.23"]
[Round "8.29"]
[White "Burchardt, Brigitte"]
[Black "Mahia, Gustavo"]
[Result "0-1"]
[ECO "B13"]
[WhiteElo "2136"]
[BlackElo "2367"]
[Annotator "NA RC"]
[PlyCount "82"]
[EventDate "2019.04.16"]
[EventType "team-tourn"]
[EventCountry "GRE"]
[SourceTitle "playchess.com"]
[Source "ChessBase"]
[SourceQuality "1"]
[WhiteTeam "Germany"]
[BlackTeam "Argentina"]
[WhiteTeamCountry "GER"]
[BlackTeamCountry "ARG"]
[TimeControl "40/5400+30:1800+30"]

1. e4 {[%emt 0:00:00]} c6 {[%emt 0:00:00]} 2. Nc3 {[%emt 0:00:00]} d5 {[%emt 0:00:04]} 3. Nf3 {[%emt 0:00:00]} Nf6 {[%emt 0:00:24]} 4. exd5 {[%emt 0:01:31]} cxd5 {[%emt 0:00:08]} 5. d4 {[%emt 0:00:04]} Nc6 {[%emt 0:00:14]} 6. h3 {[%emt 0:01:01] B13: Caro-Kann: Exchange Variation and Panov-Botvinnik Attack} (6. Bf4 Bf5 {½-½ (6) Sumets,A (2579)-Savchenko,S (2508) Tipaza 2011}) 6... Bf5 {[%emt 0:00:38]} 7. Bd3 {[%emt 0:00:33]} Bxd3 {[%emt 0:00:36]} 8. Qxd3 {[%emt 0:00:05]} e6 {[%emt 0:00:13]} 9. Bf4 {[%emt 0:03:00]} Be7 {[%emt 0:01:41]} 10. O-O {[%emt 0:04:19]} O-O {[%emt 0:00:43]} 11. Nd1 $146 {[%emt 0:15:29]} ({Predecessor:} 11. a3 Rc8 12. Ne5 Na5 13. b4 {0-1 (26) Fleischhacker,C (1839)-De Visser,L (2205) Austria 2018}) 11... a6 {[%emt 0:06:30]} 12. Ne5 {[%emt 0:01:49]} Nxe5 {[%emt 0:02:15]} 13. Bxe5 {[%emt 0:04:13]} Nd7 {[%emt 0:03:21]} 14. Bg3 {[%emt 0:02:04]} Rc8 {[%emt 0:01:01]} 15. Ne3 {[%emt 0:01:20]} f5 {[%emt 0:02:53]} 16. Bh2 {[%emt 0:09:03]} f4 {[%emt 0:12:45]} 17. Nd1 {[%emt 0:01:02]} Bd6 {[%emt 0:17:41]} 18. Re1 {[%emt 0:03:30]} Rf6 {[%emt 0:02:54]} 19. Kh1 {[%emt 0:05:01]} Qc7 {[%emt 0:00:48]} 20. c3 {[%emt 0:00:47]} f3 {[%emt 0:00:35]} 21. Bxd6 {[%emt 0:00:06]} fxg2+ {[%emt 0:00:06]} 22. Kxg2 {[%emt 0:00:07]} Qxd6 {[%emt 0:00:04]} 23. Kh1 {[%emt 0:09:07]} Rcf8 {[%emt 0:03:04]} 24. Re3 {[%emt 0:04:06]} e5 {[%emt 0:03:10]} 25. Rg3 {[%emt 0:09:49]} e4 {[%emt 0:05:50]} 26. Qd2 $2 {[%emt 0:03:24]} (26. Qe2 {might work better.}) 26... Rf4 {[%emt 0:01:35]} 27. Rc1 {[%emt 0:05:02]} Nf6 {[%emt 0:05:55]} 28. Rg2 {[%emt 0:03:01]} Nh5 {[%emt 0:01:26]} 29. Kg1 {[%emt 0:00:25]} Qd7 {[%emt 0:00:30]} 30. Ne3 {[%emt 0:05:16]} Rf3 {[%emt 0:01:21]} 31. Rf1 {[%emt 0:03:20]} Nf4 $19 {[%emt 0:00:42]} 32. Rh2 {[%emt 0:00:46]} Nxh3+ {[%emt 0:01:21]} 33. Kh1 {[%emt 0:00:14]} Qe6 {[%emt 0:03:30]} 34. c4 {[%emt 0:00:48]} dxc4 {[%emt 0:01:13]} 35. d5 {[%emt 0:03:00]} Qg6 {[%emt 0:03:48]} 36. Nd1 {[%emt 0:00:48]} Rd3 {[%emt 0:04:54]} 37. Qe2 {[%emt 0:00:48]} Nf4 {[%emt 0:00:17]} 38. Qc2 {[%emt 0:00:48]} Rh3 {[%emt 0:01:53]} 39. f3 {[%emt 0:00:36]} Rxh2+ {[%emt 0:00:34]} 40. Qxh2 {[%emt 0:00:00]} exf3 {[%emt 0:00:00]} 41. Rxf3 {[%emt 0:00:43]} Qe4 {[%emt 0:00:23]} 0-1

[Event "World Senior chT-50 2019"]
[Site "Rhodes"]
[Date "2019.04.23"]
[Round "8.30"]
[White "Garbarino, Rodolfo"]
[Black "Wagner-Michel, Annett"]
[Result "1-0"]
[ECO "B34"]
[WhiteElo "2335"]
[BlackElo "2056"]
[Annotator "ChessBase"]
[PlyCount "107"]
[EventDate "2019.04.16"]
[EventType "team-tourn"]
[EventCountry "GRE"]
[SourceTitle "playchess.com"]
[Source "ChessBase"]
[SourceQuality "1"]
[WhiteTeam "Argentina"]
[BlackTeam "Germany"]
[WhiteTeamCountry "ARG"]
[BlackTeamCountry "GER"]
[TimeControl "40/5400+30:1800+30"]

1. e4 {[%emt 4:24:35]} c5 {[%emt 0:00:02]} 2. Nc3 {[%emt 0:00:00]} Nc6 {[%emt 0:00:03]} 3. Nf3 {[%emt 0:00:00]} g6 {[%emt 0:00:18]} 4. d4 {[%emt 0:00:00]} cxd4 {[%emt 0:00:04]} 5. Nxd4 {[%emt 0:00:00]} Bg7 {[%emt 0:00:12]} 6. Nb3 {[%emt 0:00:00]} d6 {[%emt 0:00:55]} 7. f4 {[%emt 0:00:00]} Nf6 {[%emt 0:00:29]} 8. Bd3 {[%emt 0:00:00]} O-O {[%emt 0:05:49]} 9. O-O {[%emt 0:00:00]} a5 {[%emt 0:01:34]} 10. a4 {[%emt 0:00:00]} Nb4 {[%emt 0:02:08]} 11. h3 {[%emt 0:00:00]} Qb6+ {[%emt 0:09:49]} 12. Kh2 {[%emt 0:00:00]} Be6 {[%emt 0:00:49]} 13. Ra3 {[%emt 0:00:00]} Rac8 {[%emt 0:02:15]} 14. Rf3 {[%emt 0:00:00]} Nxd3 {[%emt 0:05:25]} 15. cxd3 {[%emt 0:00:00]} Rfe8 {[%emt 0:17:06]} 16. f5 {[%emt 0:00:00]} Bd7 {[%emt 0:07:34]} 17. Be3 {[%emt 0:00:00]} Qc7 {[%emt 0:02:09]} 18. Kh1 {[%emt 0:00:00]} e6 {[%emt 0:02:49]} 19. fxg6 {[%emt 0:00:00]} fxg6 {[%emt 0:01:01]} 20. Nd4 {[%emt 0:00:00]} Re7 {[%emt 0:14:18]} 21. Qg1 {[%emt 0:00:00]} Qb8 {[%emt 0:06:24]} 22. Ndb5 {[%emt 0:00:00]} Bxb5 {[%emt 0:00:30]} 23. axb5 {[%emt 0:00:00]} Nd7 {[%emt 0:01:41]} 24. Bg5 {[%emt 0:00:00]} Ree8 {[%emt 0:01:10]} 25. d4 {[%emt 0:00:00]} Rc4 {[%emt 0:01:26]} 26. Be3 {[%emt 0:00:00]} b6 {[%emt 0:01:21]} 27. Ra1 {[%emt 0:00:00]} Rf8 {[%emt 0:00:55]} 28. Raf1 {[%emt 0:00:00]} Rxf3 {[%emt 0:00:39]} 29. Rxf3 {[%emt 0:00:00]} Qe8 {[%emt 0:01:32]} 30. Qf1 {[%emt 0:00:00]} Rb4 {[%emt 0:00:17]} 31. Qf2 {[%emt 0:00:00]} Rc4 {[%emt 0:03:07]} 32. Qd2 {[%emt 0:00:00]} Qe7 {[%emt 0:02:53]} 33. Bg5 {[%emt 0:00:00]} Qe8 {[%emt 0:00:18]} 34. Rd3 {[%emt 0:00:00]} Qf7 {[%emt 0:00:19]} 35. Kg1 {[%emt 0:00:00]} Qf8 {[%emt 0:01:56]} 36. e5 {[%emt 0:00:00]} d5 {[%emt 0:00:48]} 37. Rf3 {[%emt 0:00:00]} Qb4 {[%emt 0:00:08]} 38. Qf4 {[%emt 0:00:00]} Qf8 {[%emt 0:01:52]} 39. Bf6 {[%emt 0:00:00]} Qe8 {[%emt 0:03:58]} 40. h4 {[%emt 0:00:00]} h6 {[%emt 0:01:29]} 41. Qd2 {[%emt 0:00:00]} Bf8 {[%emt 0:01:45]} 42. Ne2 {[%emt 0:00:00]} Bg7 {[%emt 0:03:25]} 43. Qd3 {[%emt 0:00:00]} Rc7 {[%emt 0:04:42]} 44. Bxg7 {[%emt 0:00:00]} Kxg7 {[%emt 0:00:03]} 45. Nf4 {[%emt 0:00:00]} Nf8 {[%emt 0:03:36]} 46. Rg3 {[%emt 0:00:00]} Qf7 {[%emt 0:04:56]} 47. Nxg6 {[%emt 0:00:00]} Rc1+ {[%emt 0:02:18]} 48. Kh2 {[%emt 0:00:00]} Nxg6 {[%emt 0:00:51]} 49. h5 {[%emt 0:00:00]} Qf4 {[%emt 0:05:27]} 50. Qxg6+ {[%emt 0:00:00]} Kf8 {[%emt 0:00:02]} 51. Qxe6 {[%emt 0:00:00]} Rh1+ {[%emt 0:03:01]} 52. Kxh1 {[%emt 0:00:00]} Qxg3 {[%emt 0:00:02]} 53. Qxh6+ {[%emt 0:00:00]} Ke7 {[%emt 0:00:52]} 54. Qd6+ {[%emt 0:00:00]} 1-0

[Event "World Senior chT-50 2019"]
[Site "Rhodes"]
[Date "2019.04.23"]
[Round "8.32"]
[White "Perez Wertheim, Rodolfo"]
[Black "Jeske, Kirsten"]
[Result "1/2-1/2"]
[ECO "A80"]
[WhiteElo "1914"]
[BlackElo "1951"]
[Annotator "NA RC"]
[PlyCount "37"]
[EventDate "2019.04.16"]
[EventType "team-tourn"]
[EventCountry "GRE"]
[SourceTitle "playchess.com"]
[Source "ChessBase"]
[SourceQuality "1"]
[WhiteTeam "Argentina"]
[BlackTeam "Germany"]
[WhiteTeamCountry "ARG"]
[BlackTeamCountry "GER"]
[TimeControl "40/5400+30:1800+30"]

1. d4 {[%emt 0:00:00]} e6 {[%emt 0:00:00]} 2. Nf3 {[%emt 0:01:04]} d5 {[%emt 0:00:14]} 3. Bf4 {[%emt 0:00:08]} f5 {[%emt 0:00:58]} 4. g4 {[%emt 0:08:53]} Nf6 {[%emt 0:06:44]} 5. gxf5 {[%emt 0:13:22]} exf5 {[%emt 0:01:23]} 6. e3 {[%emt 0:06:39]} Bd6 {[%emt 0:09:22]} 7. Ne5 {[%emt 0:08:28]} Qe7 {[%emt 0:06:35]} 8. Bg2 {[%emt 0:03:02]} c6 {[%emt 0:03:27]} 9. Nd2 {[%emt 0:02:54]} Ng4 {[%emt 0:11:44]} 10. Ndf3 {[%emt 0:02:23]} Nd7 {[%emt 0:05:31]} 11. Bg5 {[%emt 0:09:24]} Ngf6 {[%emt 0:06:46]} 12. Nd3 {[%emt 0:08:10]} O-O {[%emt 0:18:18]} 13. O-O {[%emt 0:01:36]} Qe8 {[%emt 0:06:08]} 14. Bf4 {[%emt 0:03:12]} Bxf4 {[%emt 0:00:59]} 15. Nxf4 {[%emt 0:00:10]} Ne4 $11 {[%emt 0:00:33]} 16. h4 {[%emt 0:04:01]} Ndf6 {[%emt 0:01:27]} 17. Ne5 {[%emt 0:00:33]} Nd7 {[%emt 0:02:26]} 18. Nf3 {[%emt 0:10:18]} Ndf6 {[%emt 0:00:02]} 19. Ne5 {[%emt 0:00:28]} 1/2-1/2

[Event "World Senior chT-50 2019"]
[Site "Rhodes"]
[Date "2019.04.23"]
[Round "8.36"]
[White "Johansson, Bjorn"]
[Black "Chernik, Dmitry"]
[Result "0-1"]
[ECO "A25"]
[WhiteElo "1888"]
[BlackElo "1868"]
[Annotator "NA"]
[PlyCount "68"]
[EventDate "2019.04.16"]
[EventType "team-tourn"]
[EventCountry "GRE"]
[SourceTitle "playchess.com"]
[Source "ChessBase"]
[SourceQuality "1"]
[WhiteTeam "Sweden"]
[BlackTeam "Canada"]
[WhiteTeamCountry "SWE"]
[BlackTeamCountry "CAN"]
[TimeControl "40/5400+30:1800+30"]

1. c4 {[%emt 0:00:00]} e5 {[%emt 0:00:17]} 2. g3 {[%emt 0:00:00]} Nc6 {[%emt 0:00:06]} 3. Bg2 {[%emt 0:00:00]} f5 {[%emt 0:00:06]} 4. Nc3 {[%emt 0:00:19]} Nf6 {[%emt 0:00:07]} 5. d3 {[%emt 0:00:48]} Bb4 {[%emt 0:00:18]} 6. Bd2 {[%emt 0:01:02]} O-O {[%emt 0:02:25]} 7. a3 {[%emt 0:00:42]} Bxc3 {[%emt 0:00:24]} 8. Bxc3 {[%emt 0:00:36]} d6 {[%emt 0:00:05]} 9. e3 {[%emt 0:01:44]} Qe8 {[%emt 0:00:17]} 10. Ne2 {[%emt 0:01:39]} Kh8 {[%emt 0:07:02]} 11. Qd2 {[%emt 0:01:31]} Be6 {[%emt 0:00:29]} 12. O-O {[%emt 0:02:17]} Qh5 {[%emt 0:01:47]} 13. f4 {[%emt 0:01:19]} Rae8 {[%emt 0:06:54]} 14. b3 {[%emt 0:04:52]} Bd7 {[%emt 0:01:47]} 15. Rae1 {[%emt 0:01:52]} Ne7 {[%emt 0:11:11]} 16. fxe5 {[%emt 0:07:11]} dxe5 {[%emt 0:00:19]} 17. Bxe5 {[%emt 0:00:07]} Ng4 {[%emt 0:00:28]} 18. Bxg7+ {[%emt 0:00:54]} Kxg7 {[%emt 0:00:10]} 19. h3 {[%emt 0:00:13]} Nf6 {[%emt 0:00:41]} 20. Nf4 {[%emt 0:00:40]} Qg5 {[%emt 0:01:17]} 21. Kh2 {[%emt 0:00:43]} c6 {[%emt 0:04:40]} 22. d4 {[%emt 0:06:05]} Ne4 {[%emt 0:04:07]} 23. Bxe4 {[%emt 0:00:05]} fxe4 {[%emt 0:00:10]} 24. d5 {[%emt 0:02:15]} cxd5 {[%emt 0:05:14]} 25. cxd5 {[%emt 0:00:40]} Ng6 {[%emt 0:01:02]} 26. Qd4+ {[%emt 0:05:52]} Qe5 {[%emt 0:05:03]} 27. Nh5+ {[%emt 0:03:58]} Kh6 {[%emt 0:06:16]} 28. Nf4 {[%emt 0:07:25]} Nxf4 {[%emt 0:01:22]} 29. Qxe5 {[%emt 0:00:20]} Rxe5 {[%emt 0:00:13]} 30. exf4 {[%emt 0:00:08]} Rxd5 {[%emt 0:00:26]} 31. Rxe4 {[%emt 0:01:20]} Rd2+ {[%emt 0:00:15]} 32. Kg1 {[%emt 0:00:16]} Bxh3 {[%emt 0:00:15]} 33. Rf2 {[%emt 0:00:56]} Rxf2 {[%emt 0:02:13]} 34. Kxf2 {[%emt 0:00:01]} Bd7 {[%emt 0:02:10]} 0-1

[Event "World Senior chT-50 2019"]
[Site "Rhodes"]
[Date "2019.04.23"]
[Round "8.37"]
[White "Yrjola, Jouni"]
[Black "Priedite, Ingrida"]
[Result "1-0"]
[ECO "E32"]
[WhiteElo "2327"]
[BlackElo "2044"]
[Annotator "NA RC"]
[PlyCount "91"]
[EventDate "2019.04.16"]
[EventType "team-tourn"]
[EventCountry "GRE"]
[SourceTitle "playchess.com"]
[Source "ChessBase"]
[SourceQuality "1"]
[WhiteTeam "Finland"]
[BlackTeam "Latvia"]
[WhiteTeamCountry "FIN"]
[BlackTeamCountry "LAT"]
[TimeControl "40/5400+30:1800+30"]

1. d4 {[%emt 0:00:00]} Nf6 {[%emt 0:00:00]} 2. c4 {[%emt 0:00:00]} e6 {[%emt 0:00:00]} 3. Nc3 {[%emt 0:00:34]} Bb4 {[%emt 0:00:07]} 4. Qc2 {[%emt 0:00:12]} O-O {[%emt 0:00:42]} 5. a3 {[%emt 0:00:30]} Bxc3+ {[%emt 0:00:47]} 6. Qxc3 {[%emt 0:00:07]} b6 {[%emt 0:00:43]} 7. Bg5 {[%emt 0:00:43]} Bb7 {[%emt 0:11:07]} 8. f3 {[%emt 0:02:26]} h6 {[%emt 0:02:04]} 9. Bh4 {[%emt 0:00:26]} d5 {[%emt 0:06:20]} 10. e3 {[%emt 0:02:17]} Nbd7 {[%emt 0:03:56]} 11. Nh3 {[%emt 0:03:29]} Rc8 {[%emt 0:05:08] E32: Nimzo-Indian: Classical (4 Qc2): 4...0-0} (11... c5 12. cxd5 cxd4 13. Qxd4 e5 14. Qd1 Bxd5 15. Nf2 Be6 16. Bd3 Nc5 17. Bc2 Qxd1+ 18. Rxd1 Nd5 19. Ke2 Rac8 {0-1 (40) Laznicka,V (2634)-Grischuk,A (2733) Ohrid 2009}) 12. c5 {[%emt 0:23:04]} bxc5 {[%emt 0:16:10]} 13. dxc5 {[%emt 0:00:11]} Ne4 {[%emt 0:00:58]} 14. Bxd8 {[%emt 0:08:25]} Nxc3 {[%emt 0:00:06]} 15. Bh4 {[%emt 0:04:01]} Na4 {[%emt 0:00:21]} 16. b4 {[%emt 0:08:03]} c6 {[%emt 0:00:15]} 17. Kd2 $146 {[%emt 0:01:59]} ({Predecessor:} 17. Bg3 a5 18. Bd6 Rfe8 19. Rb1 axb4 20. axb4 Nc3 21. Rc1 Na2 22. Rc2 Ra8 23. b5 Ra3 24. Kd2 {½-½ (24) Sivenkov,O (2469)-Dibley,S (2459) ICCF email 2008}) 17... a5 {[%emt 0:05:30]} 18. Be7 {[%emt 0:12:43]} Rfe8 {[%emt 0:00:08]} 19. Bd6 {[%emt 0:00:05]} Ra8 {[%emt 0:00:25]} 20. Kc2 {[%emt 0:00:19]} Ba6 {[%emt 0:01:53]} 21. Kb3 {[%emt 0:00:33]} Bb5 {[%emt 0:01:37]} 22. Bxb5 {[%emt 0:00:20]} cxb5 {[%emt 0:00:12]} 23. Nf4 {[%emt 0:04:17]} Nb8 {[%emt 0:06:09]} 24. Ne2 {[%emt 0:07:36]} axb4 {[%emt 0:07:15]} 25. axb4 {[%emt 0:00:27]} Nc6 {[%emt 0:00:29]} 26. Nd4 {[%emt 0:00:23]} Nxd4+ {[%emt 0:00:46]} 27. exd4 {[%emt 0:00:06]} Rec8 {[%emt 0:01:02]} 28. g4 {[%emt 0:01:31]} Rc6 {[%emt 0:03:32]} 29. f4 {[%emt 0:01:17]} Rca6 {[%emt 0:02:20]} 30. Rab1 {[%emt 0:03:37]} f6 {[%emt 0:07:21]} (30... Rc6 $142 31. Rbc1 Kh7) 31. h4 {[%emt 0:02:20]} Rc6 {[%emt 0:02:05]} 32. Ra1 {[%emt 0:04:43]} Rca6 {[%emt 0:00:06]} 33. Rab1 {[%emt 0:02:02]} Rc6 {[%emt 0:00:06]} 34. f5 {[%emt 0:00:39]} exf5 {[%emt 0:02:02]} 35. gxf5 {[%emt 0:00:05]} Nb6 {[%emt 0:09:30]} 36. Ra1 {[%emt 0:00:43]} Na4 {[%emt 0:00:05]} 37. Rhe1 {[%emt 0:00:22]} Rca6 {[%emt 0:01:55]} 38. Rab1 {[%emt 0:00:37]} R6a7 {[%emt 0:03:45]} 39. Re6 {[%emt 0:01:26]} Kh7 {[%emt 0:01:18]} 40. h5 {[%emt 0:00:00]} Ra6 {[%emt 0:00:00]} 41. Re7 {[%emt 0:07:41]} Nb6 {[%emt 0:06:28]} 42. cxb6 {[%emt 0:01:04]} Ra3+ {[%emt 0:06:56]} (42... Rxb6 $142 43. Bc7 Rb7) 43. Kc2 {[%emt 0:00:08]} Rf3 {[%emt 0:01:07]} 44. Re2 {[%emt 0:07:01]} Ra2+ {[%emt 0:02:24]} 45. Rb2 {[%emt 0:00:23]} Raa3 {[%emt 0:02:04]} 46. b7 $18 {[%emt 0:02:49]} 1-0

[Event "World Senior chT-50 2019"]
[Site "Rhodes"]
[Date "2019.04.24"]
[Round "9.2"]
[White "Novikov, Igor"]
[Black "Garbarino, Rodolfo"]
[Result "1/2-1/2"]
[ECO "D52"]
[WhiteElo "2563"]
[BlackElo "2335"]
[Annotator "ChessBase"]
[PlyCount "26"]
[EventDate "2019.04.16"]
[EventType "team-tourn"]
[EventCountry "GRE"]
[SourceTitle "playchess.com"]
[Source "ChessBase"]
[SourceQuality "1"]
[WhiteTeam "United States"]
[BlackTeam "Argentina"]
[WhiteTeamCountry "USA"]
[BlackTeamCountry "ARG"]
[TimeControl "40/5400+30:1800+30"]

1. d4 {[%emt 11:25:15]} d5 {[%emt 0:00:04]} 2. c4 {[%emt 0:00:08]} e6 {[%emt 0:00:03]} 3. Nf3 {[%emt 0:00:08]} Nf6 {[%emt 0:00:04]} 4. Nc3 {[%emt 0:00:08]} Nbd7 {[%emt 0:00:04]} 5. Bg5 {[%emt 0:00:24]} c6 {[%emt 0:00:13]} 6. e3 {[%emt 0:01:06]} Qa5 {[%emt 0:00:08]} 7. Nd2 {[%emt 0:00:50]} Bb4 {[%emt 0:00:07]} 8. Qc2 {[%emt 0:00:21]} O-O {[%emt 0:00:06]} 9. Be2 {[%emt 0:03:10]} e5 {[%emt 0:00:22]} 10. O-O {[%emt 0:32:35]} exd4 {[%emt 0:00:09]} 11. Nb3 {[%emt 0:02:27]} Qb6 {[%emt 0:09:52]} 12. exd4 {[%emt 0:04:47]} dxc4 {[%emt 0:01:47]} 13. Bxc4 {[%emt 0:00:08]} a5 {[%emt 0:00:44]} 1/2-1/2

[Event "World Senior chT-50 2019"]
[Site "Rhodes"]
[Date "2019.04.24"]
[Round "9.3"]
[White "Llanos, Guillermo"]
[Black "Ehlvest, Jaan"]
[Result "1/2-1/2"]
[ECO "A49"]
[WhiteElo "2293"]
[BlackElo "2521"]
[Annotator "ChessBase"]
[PlyCount "31"]
[EventDate "2019.04.16"]
[EventType "team-tourn"]
[EventCountry "GRE"]
[SourceTitle "playchess.com"]
[Source "ChessBase"]
[SourceQuality "1"]
[WhiteTeam "Argentina"]
[BlackTeam "United States"]
[WhiteTeamCountry "ARG"]
[BlackTeamCountry "USA"]
[TimeControl "40/5400+30:1800+30"]

1. Nf3 {[%emt 0:00:00]} d6 {[%emt 0:01:32]} 2. g3 {[%emt 0:01:36]} g6 {[%emt 0:00:56]} 3. Bg2 {[%emt 0:00:04]} Bg7 {[%emt 0:00:04]} 4. O-O {[%emt 0:00:06]} Nf6 {[%emt 0:02:17]} 5. d4 {[%emt 0:00:29]} O-O {[%emt 0:00:08]} 6. Re1 {[%emt 0:02:33]} Ne4 {[%emt 0:09:02]} 7. c3 {[%emt 0:08:18]} c6 {[%emt 0:09:40]} 8. Nbd2 {[%emt 0:12:28]} Nxd2 {[%emt 0:01:18]} 9. Qxd2 {[%emt 0:01:41]} Nd7 {[%emt 0:09:14]} 10. e4 {[%emt 0:01:29]} e5 {[%emt 0:00:48]} 11. dxe5 {[%emt 0:06:12]} dxe5 {[%emt 0:00:42]} 12. Qc2 {[%emt 0:10:42]} a5 {[%emt 0:05:08]} 13. a4 {[%emt 0:07:47]} Nc5 {[%emt 0:01:27]} 14. Be3 {[%emt 0:00:10]} Qe7 {[%emt 0:00:14]} 15. Nd2 {[%emt 0:03:27]} Be6 {[%emt 0:01:25]} 16. Bf1 {[%emt 0:06:10]} 1/2-1/2